fUSD/lending_fUSD_20250110
["ID","MTS","AMOUNT","RATE_DAILY","PERIOD"]
[348384210,1736493038151,-150.0,9.926e-05,2]
[348384211,1736493038162,-72.87465357,9.941e-05,2]
[348384212,1736493038175,-77.12534643,9.941e-05,2]
[348384213,1736493038185,-150.0,9.956e-05,2]
[348384214,1736493038194,-150.0,9.971e-05,2]
[348384215,1736493038203,-500.0,9.973e-05,2]
[348384216,1736493038213,-151.82454838,9.973e-05,2]
[348384217,1736493038222,-150.0,9.985e-05,2]
[348384218,1736493038231,-162.958,9.991e-05,2]
[348384219,1736493038241,-2094.429,9.991e-05,2]
[348384220,1736493038250,-1888.0020526,9.992e-05,2]
[348384221,1736493038259,-7356.5592301,9.992e-05,2]
[348384222,1736493038269,-853.3502181,9.992e-05,2]
[348384223,1736493038278,-2462.310756,9.992e-05,2]
[348384224,1736493038287,-847.87,9.996e-05,2]
[348384225,1736493038298,-722.36,9.996e-05,2]
[348384226,1736493038308,-500.0,9.996e-05,2]
[348384227,1736493038317,-729.54,9.996e-05,2]
[348384228,1736493038327,-500.0,9.996e-05,2]
[348384229,1736493038336,-1007.56,9.996e-05,2]
[348384230,1736493038346,-500.0,9.996e-05,2]
[348384231,1736493038355,-500.0,9.997e-05,2]
[348384232,1736493038364,-500.0,9.997e-05,2]
[348384233,1736493038374,-500.0,9.997e-05,2]
[348384234,1736493038383,-503.33359347,9.997e-05,2]
[348384235,1736493038392,-500.0,9.997e-05,2]
[348384236,1736493038401,-503.22456951,9.997e-05,2]
[348384237,1736493038410,-500.0,9.997e-05,2]
[348384238,1736493038419,-532.29,9.997e-05,2]
[348384239,1736493038428,-500.0,9.997e-05,2]
[348384240,1736493038437,-500.0,9.997e-05,2]
[348384241,1736493038446,-500.0,9.997e-05,2]
[348384242,1736493038455,-500.0,9.997e-05,2]
[348384243,1736493038464,-500.0,9.997e-05,2]
[348384244,1736493038474,-669.24,9.997e-05,2]
[348384245,1736493038483,-500.0,9.997e-05,2]
[348384246,1736493038491,-500.0,9.997e-05,2]
[348384247,1736493038501,-500.0,9.997e-05,2]
[348384248,1736493038510,-500.0,9.997e-05,2]
[348384249,1736493038520,-503.64590921,9.997e-05,2]
[348384250,1736493038529,-500.0,9.997e-05,2]
[348384251,1736493038538,-500.0,9.997e-05,2]
[348384252,1736493038549,-500.0,9.997e-05,2]
[348384253,1736493038558,-500.0,9.997e-05,2]
[348384254,1736493038568,-500.0,9.997e-05,2]
[348384255,1736493038577,-800.77,9.997e-05,2]
[348384256,1736493038586,-682.6,9.997e-05,2]
[348384257,1736493038596,-500.0,9.997e-05,2]
[348384258,1736493038606,-500.0,9.997e-05,2]
[348384259,1736493038616,-500.0,9.997e-05,2]
[348384260,1736493038626,-500.0,9.997e-05,2]
[348384261,1736493038637,-561.51,9.997e-05,2]
[348384262,1736493038646,-641.08,9.997e-05,2]
[348384263,1736493038655,-500.0,9.997e-05,2]
[348384264,1736493038664,-500.0,9.997e-05,2]
[348384265,1736493038673,-500.0,9.997e-05,2]
[348384266,1736493038682,-500.0,9.997e-05,2]
[348384267,1736493038691,-500.0,9.997e-05,2]
[348384268,1736493038700,-500.0,9.997e-05,2]
[348384269,1736493038709,-500.0,9.997e-05,2]
[348384270,1736493038719,-746.11,9.997e-05,2]
[348384271,1736493038728,-278.75822791,9.997e-05,2]
[348384272,1736493038737,-500.0,9.997e-05,2]
[348384273,1736493038747,-500.0,9.997e-05,2]
[348384274,1736493038755,-500.0,9.997e-05,2]
[348384275,1736493038765,-500.0,9.997e-05,2]
[348384276,1736493038774,-500.0,9.997e-05,2]
[348384277,1736493038783,-500.0,9.997e-05,2]
[348384278,1736493038794,-500.0,9.997e-05,2]
[348384279,1736493038804,-503.72721293,9.997e-05,2]
[348384280,1736493038813,-500.0,9.997e-05,2]
[348384281,1736493038822,-500.0,9.997e-05,2]
[348384282,1736493038831,-500.0,9.997e-05,2]
[348384283,1736493038841,-500.0,9.997e-05,2]
[348384284,1736493038851,-500.0,9.997e-05,2]
[348384285,1736493038860,-500.0,9.997e-05,2]
[348384286,1736493038870,-261.99256094,9.997e-05,2]
[348384287,1736493038878,-500.0,9.997e-05,2]
[348384288,1736493038887,-500.0,9.997e-05,2]
[348384289,1736493038896,-571.58,9.997e-05,2]
[348384290,1736493038905,-500.0,9.997e-05,2]
[348384291,1736493038915,-500.0,9.997e-05,2]
[348384292,1736493038924,-500.0,9.997e-05,2]
[348384293,1736493038933,-500.0,9.997e-05,2]
[348384294,1736493038943,-965.55,9.997e-05,2]
[348384295,1736493038953,-523.28,9.997e-05,2]
[348384296,1736493038963,-500.0,9.997e-05,2]
[348384297,1736493038972,-500.0,9.997e-05,2]
[348384298,1736493038982,-500.0,9.997e-05,2]
[348384299,1736493038991,-500.0,9.997e-05,2]
[348384300,1736493039000,-500.0,9.997e-05,2]
[348384301,1736493039010,-500.0,9.997e-05,2]
[348384302,1736493039018,-500.0,9.997e-05,2]
[348384303,1736493039028,-500.0,9.997e-05,2]
[348384304,1736493039037,-672.88,9.997e-05,2]
[348384305,1736493039048,-500.0,9.997e-05,2]
[348384306,1736493039057,-500.0,9.997e-05,2]
[348384307,1736493039066,-703.17,9.997e-05,2]
[348384308,1736493039075,-500.0,9.997e-05,2]
[348384309,1736493039084,-500.0,9.997e-05,2]
[348384310,1736493039093,-501.9398778,9.997e-05,2]
[348384311,1736493039102,-500.0,9.997e-05,2]
[348384312,1736493039111,-696.23,9.997e-05,2]
[348384313,1736493039121,-500.0,9.997e-05,2]
[348384314,1736493039131,-500.0,9.997e-05,2]
[348384315,1736493039141,-500.0,9.997e-05,2]
[348384316,1736493039150,-500.0,9.997e-05,2]
[348384317,1736493039159,-500.0,9.997e-05,2]
[348384318,1736493039169,-500.0,9.997e-05,2]
[348384319,1736493039178,-503.70303164,9.997e-05,2]
[348384320,1736493039187,-500.0,9.997e-05,2]
[348384321,1736493039197,-500.0,9.997e-05,2]
[348384322,1736493039206,-2322.77,9.997e-05,2]
[348384323,1736493039216,-500.0,9.997e-05,2]
[348384324,1736493039225,-326.51397642,9.997e-05,2]
[348384325,1736493039235,-500.0,9.997e-05,2]
[348384326,1736493039244,-500.0,9.997e-05,2]
[348384327,1736493039254,-513.86057102,9.997e-05,2]
[348384328,1736493039264,-500.0,9.997e-05,2]
[348384329,1736493039274,-500.0,9.997e-05,2]
[348384330,1736493039284,-571.61249942,9.997e-05,2]
[348384331,1736493039295,-500.0,9.997e-05,2]
[348384332,1736493039305,-500.0,9.997e-05,2]
[348384333,1736493039315,-500.0,9.997e-05,2]
[348384334,1736493039325,-922.17,9.997e-05,2]
[348384335,1736493039334,-501.0925258,9.997e-05,2]
[348384336,1736493039344,-555.6,9.997e-05,2]
[348384337,1736493039353,-500.0,9.997e-05,2]
[348384338,1736493039362,-700.21,9.997e-05,2]
[348384339,1736493039371,-282.42,9.997e-05,2]
[348384340,1736493039381,-685.94,9.997e-05,2]
[348384341,1736493039391,-500.0,9.997e-05,2]
[348384342,1736493039400,-500.0,9.997e-05,2]
[348384343,1736493039410,-500.0,9.997e-05,2]
[348384344,1736493039419,-673.39,9.997e-05,2]
[348384345,1736493039429,-426.11403526,9.997e-05,2]
[348384346,1736493039438,-500.0,9.997e-05,2]
[348384347,1736493039448,-500.0,9.997e-05,2]
[348384348,1736493039458,-500.0,9.997e-05,2]
[348384349,1736493039468,-500.0,9.997e-05,2]
[348384350,1736493039477,-500.0,9.997e-05,2]
[348384351,1736493039487,-757.96,9.997e-05,2]
[348384352,1736493039496,-500.0,9.997e-05,2]
[348384353,1736493039506,-500.0,9.997e-05,2]
[348384355,1736493039516,-500.0,9.997e-05,2]
[348384356,1736493039525,-500.0,9.997e-05,2]
[348384357,1736493039535,-500.0,9.997e-05,2]
[348384358,1736493039545,-587.1,9.997e-05,2]
[348384359,1736493039555,-500.0,9.997e-05,2]
[348384361,1736493039565,-500.0,9.997e-05,2]
[348384363,1736493039574,-706.31,9.997e-05,2]
[348384364,1736493039584,-500.0,9.997e-05,2]
[348384365,1736493039593,-501.31742119,9.997e-05,2]
[348384366,1736493039603,-500.0,9.997e-05,2]
[348384367,1736493039850,-1195.63,9.997e-05,2]
[348384368,1736493039860,-541.18,9.997e-05,2]
[348384369,1736493039870,-738.19,9.997e-05,2]
[348384370,1736493039879,-530.03,9.997e-05,2]
[348384371,1736493039889,-500.0,9.997e-05,2]
[348384372,1736493039899,-500.0,9.997e-05,2]
[348384373,1736493039909,-794.4,9.997e-05,2]
[348384374,1736493039918,-331.90805916,9.997e-05,2]
[348384375,1736493039928,-500.0,9.997e-05,2]
[348384376,1736493039937,-864.29,9.997e-05,2]
[348384377,1736493039947,-783.45,9.997e-05,2]
[348384378,1736493039956,-701.96,9.997e-05,2]
[348384379,1736493039966,-500.0,9.997e-05,2]
[348384380,1736493039975,-691.77,9.997e-05,2]
[348384381,1736493039984,-500.0,9.997e-05,2]
[348384382,1736493039994,-500.0,9.997e-05,2]
[348384383,1736493040003,-500.0,9.997e-05,2]
[348384384,1736493040013,-500.0,9.997e-05,2]
[348384385,1736493040023,-581.41,9.997e-05,2]
[348384386,1736493040032,-646.25,9.997e-05,2]
[348384387,1736493040041,-540.50589713,9.997e-05,2]
[348384388,1736493040054,-500.0,9.997e-05,2]
[348384389,1736493040064,-504.80713807,9.997e-05,2]
[348384390,1736493040073,-500.0,9.997e-05,2]
[348384391,1736493040082,-729.19,9.997e-05,2]
[348384392,1736493040092,-760.21,9.997e-05,2]
[348384393,1736493040101,-310.82688619,9.997e-05,2]
[348384394,1736493040111,-673.97,9.997e-05,2]
[348384395,1736493040120,-491.74730206,9.997e-05,2]
[348384396,1736493040130,-500.0,9.997e-05,2]
[348384397,1736493040139,-626.26,9.997e-05,2]
[348384398,1736493040148,-279.4781576,9.997e-05,2]
[348384399,1736493040158,-500.0,9.997e-05,2]
[348384400,1736493040167,-2730.08,9.997e-05,2]
[348384401,1736493040177,-500.0,9.997e-05,2]
[348384402,1736493040187,-500.0,9.997e-05,2]
[348384403,1736493040197,-509.05,9.997e-05,2]
[348384404,1736493040206,-403.568498,9.997e-05,2]
[348384405,1736493040216,-500.0,9.997e-05,2]
[348384406,1736493040225,-501.26982791,9.997e-05,2]
[348384407,1736493040234,-337.27492149,9.997e-05,2]
[348384408,1736493040243,-500.0,9.997e-05,2]
[348384409,1736493040252,-500.0,9.997e-05,2]
[348384410,1736493040262,-580.31,9.997e-05,2]
[348384411,1736493040271,-1375.31,9.997e-05,2]
[348384412,1736493040281,-820.69,9.997e-05,2]
[348384413,1736493040291,-624.4765679,9.997e-05,2]
[348384414,1736493040305,-458.679364,9.997e-05,2]
[348384415,1736493040315,-730.55,9.997e-05,2]
[348384416,1736493040325,-508.17,9.997e-05,2]
[348384417,1736493040335,-542.34,9.997e-05,2]
[348384418,1736493040344,-500.0,9.997e-05,2]
[348384419,1736493040353,-522.53,9.997e-05,2]
[348384420,1736493040363,-500.0,9.997e-05,2]
[348384421,1736493040372,-500.0,9.997e-05,2]
[348384422,1736493040381,-500.0,9.997e-05,2]
[348384423,1736493040391,-690.86,9.997e-05,2]
[348384424,1736493040401,-521.77992438,9.997e-05,2]
[348384425,1736493040410,-3082.21,9.997e-05,2]
[348384426,1736493040419,-500.0,9.997e-05,2]
[348384427,1736493040429,-500.0,9.997e-05,2]
[348384428,1736493040439,-547.73,9.997e-05,2]
[348384429,1736493040449,-500.0,9.997e-05,2]
[348384430,1736493040458,-500.0,9.997e-05,2]
[348384431,1736493040468,-524.98,9.997e-05,2]
[348384432,1736493040477,-1119.2,9.997e-05,2]
[348384433,1736493040487,-501.65288501,9.997e-05,2]
[348384434,1736493040497,-917.94,9.997e-05,2]
[348384435,1736493040506,-500.0,9.997e-05,2]
[348384436,1736493040515,-501.29695914,9.997e-05,2]
[348384437,1736493040525,-502.50086655,9.997e-05,2]
[348384438,1736493040535,-502.4892401,9.997e-05,2]
[348384439,1736493040544,-501.62218849,9.997e-05,2]
[348384440,1736493040556,-1367.99,9.997e-05,2]
[348384441,1736493040566,-696.12,9.997e-05,2]
[348384442,1736493040575,-505.8999662,9.997e-05,2]
[348384443,1736493040585,-506.28971264,9.997e-05,2]
[348384444,1736493040594,-838.78,9.997e-05,2]
[348384445,1736493040604,-2634.31,9.997e-05,2]
[348384446,1736493040614,-500.0,9.997e-05,2]
[348384447,1736493040623,-896.92,9.997e-05,2]
[348384448,1736493040633,-501.33627234,9.997e-05,2]
[348384449,1736493040642,-6896.51,9.997e-05,2]
[348384450,1736493040651,-506.33089824,9.997e-05,2]
[348384451,1736493040661,-500.0,9.997e-05,2]
[348384452,1736493040671,-356.17375403,9.997e-05,2]
[348384453,1736493040681,-1631.14,9.997e-05,2]
[348384454,1736493040690,-504.36883084,9.997e-05,2]
[348384455,1736493040699,-500.0,9.997e-05,2]
[348384456,1736493040708,-751.85,9.997e-05,2]
[348384457,1736493040718,-548.96103712,9.997e-05,2]
[348384458,1736493040727,-733.4,9.997e-05,2]
[348384459,1736493040737,-509.04147935,9.997e-05,2]
[348384460,1736493040747,-472.48458383,9.997e-05,2]
[348384461,1736493040757,-500.0,9.997e-05,2]
[348384462,1736493040766,-2640.07,9.997e-05,2]
[348384463,1736493040776,-846.93,9.997e-05,2]
[348384464,1736493040785,-515.92159138,9.997e-05,2]
[348384465,1736493040796,-516.36724962,9.997e-05,2]
[348384466,1736493040805,-500.0,9.997e-05,2]
[348384467,1736493040815,-591.73,9.997e-05,2]
[348384468,1736493040824,-528.35,9.997e-05,2]
[348384469,1736493040834,-508.32434252,9.997e-05,2]
[348384470,1736493040843,-500.0,9.997e-05,2]
[348384471,1736493040852,-599.17,9.997e-05,2]
[348384472,1736493040862,-500.0,9.997e-05,2]
[348384473,1736493040871,-567.45,9.997e-05,2]
[348384474,1736493040880,-984.18,9.997e-05,2]
[348384475,1736493040890,-500.0,9.997e-05,2]
[348384476,1736493040899,-734.57,9.997e-05,2]
[348384477,1736493040909,-688.12,9.997e-05,2]
[348384478,1736493040918,-500.0,9.997e-05,2]
[348384479,1736493040927,-500.0,9.997e-05,2]
[348384480,1736493040937,-995.78,9.997e-05,2]
[348384481,1736493040947,-1153.96,9.997e-05,2]
[348384482,1736493040956,-2909.44,9.997e-05,2]
[348384483,1736493040966,-677.72,9.997e-05,2]
[348384484,1736493040976,-500.0,9.997e-05,2]
[348384485,1736493040985,-821.5,9.997e-05,2]
[348384486,1736493040994,-1669.94,9.997e-05,2]
[348384487,1736493041003,-891.2,9.997e-05,2]
[348384488,1736493041012,-500.0,9.997e-05,2]
[348384489,1736493041022,-473.40722183,9.997e-05,2]
[348384490,1736493041031,-600.68,9.997e-05,2]
[348384491,1736493041041,-500.0,9.997e-05,2]
[348384492,1736493041051,-500.0,9.997e-05,2]
[348384493,1736493041060,-1547.34,9.997e-05,2]
[348384494,1736493041070,-500.0,9.997e-05,2]
[348384495,1736493041079,-913.48,9.997e-05,2]
[348384496,1736493041088,-2460.6,9.997e-05,2]
[348384497,1736493041098,-500.0,9.997e-05,2]
[348384498,1736493041107,-2201.2,9.997e-05,2]
[348384499,1736493041116,-903.14,9.997e-05,2]
[348384500,1736493041125,-785.18,9.997e-05,2]
[348384501,1736493041134,-814.53,9.997e-05,2]
[348384502,1736493041144,-957.35,9.997e-05,2]
[348384503,1736493041153,-878.65,9.997e-05,2]
[348384504,1736493041162,-844.25,9.997e-05,2]
[348384505,1736493041172,-1028.15,9.997e-05,2]
[348384506,1736493041181,-2566.56,9.997e-05,2]
[348384507,1736493041191,-586.48,9.997e-05,2]
[348384508,1736493041200,-1042.67,9.997e-05,2]
[348384509,1736493041210,-500.0,9.997e-05,2]
[348384510,1736493041219,-807.81,9.997e-05,2]
[348384511,1736493041229,-678.21,9.997e-05,2]
[348384512,1736493041238,-502.4254496,9.997e-05,2]
[348384513,1736493041247,-733.78,9.997e-05,2]
[348384514,1736493041257,-563.81,9.997e-05,2]
[348384515,1736493041266,-500.0,9.997e-05,2]
[348384516,1736493041275,-1402.52,9.997e-05,2]
[348384517,1736493041285,-626.88,9.997e-05,2]
[348384518,1736493041294,-500.0,9.997e-05,2]
[348384519,1736493041304,-500.0,9.997e-05,2]
[348384520,1736493041314,-1770.34,9.997e-05,2]
[348384521,1736493041323,-500.0,9.997e-05,2]
[348384522,1736493041332,-273.240862,9.997e-05,2]
[348384523,1736493041342,-525.81,9.997e-05,2]
[348384524,1736493041351,-500.0,9.997e-05,2]
[348384525,1736493041360,-559.13,9.997e-05,2]
[348384526,1736493041370,-500.0,9.997e-05,2]
[348384527,1736493041380,-1318.44,9.997e-05,2]
[348384528,1736493041389,-500.65795346,9.997e-05,2]
[348384529,1736493041398,-607.03,9.997e-05,2]
[348384530,1736493041408,-1071.91,9.997e-05,2]
[348384531,1736493041418,-500.0,9.997e-05,2]
[348384532,1736493041427,-500.0,9.997e-05,2]
[348384533,1736493041437,-729.21,9.997e-05,2]
[348384534,1736493041446,-908.06,9.997e-05,2]
[348384535,1736493041456,-500.0,9.997e-05,2]
[348384536,1736493041465,-500.0,9.997e-05,2]
[348384537,1736493041475,-500.0,9.997e-05,2]
[348384538,1736493041485,-500.0,9.997e-05,2]
[348384539,1736493041494,-500.0,9.997e-05,2]
[348384540,1736493041505,-597.17,9.997e-05,2]
[348384541,1736493041514,-500.0,9.997e-05,2]
[348384542,1736493041524,-2085.59,9.997e-05,2]
[348384543,1736493041533,-559.62,9.997e-05,2]
[348384544,1736493041542,-216.23,9.997e-05,2]
[348384545,1736493041551,-1294.28,9.997e-05,2]
[348384546,1736493041561,-599.69,9.997e-05,2]
[348384547,1736493041570,-877.23,9.997e-05,2]
[348384548,1736493041579,-500.0,9.997e-05,2]
[348384549,1736493041589,-500.0,9.997e-05,2]
[348384550,1736493041598,-500.0,9.997e-05,2]
[348384551,1736493041607,-500.0,9.997e-05,2]
[348384552,1736493041617,-809.65,9.997e-05,2]
[348384553,1736493041628,-500.0,9.997e-05,2]
[348384554,1736493041638,-500.0,9.997e-05,2]
[348384555,1736493041648,-1835.08,9.997e-05,2]
[348384556,1736493041657,-878.07,9.997e-05,2]
[348384557,1736493041667,-500.0,9.997e-05,2]
[348384558,1736493041676,-500.0,9.997e-05,2]
[348384559,1736493041685,-500.0,9.997e-05,2]
[348384560,1736493041695,-500.0,9.997e-05,2]
[348384561,1736493041704,-693.64,9.997e-05,2]
[348384562,1736493041713,-1005.37,9.997e-05,2]
[348384563,1736493041722,-500.0,9.997e-05,2]
[348384564,1736493041731,-2048.92,9.997e-05,2]
[348384565,1736493041741,-500.0,9.997e-05,2]
[348384566,1736493041750,-500.0,9.997e-05,2]
[348384567,1736493041760,-500.0,9.997e-05,2]
[348384568,1736493041769,-500.0,9.997e-05,2]
[348384569,1736493041779,-1360.09,9.997e-05,2]
[348384570,1736493041788,-500.0,9.997e-05,2]
[348384571,1736493041800,-505.85718726,9.997e-05,2]
[348384572,1736493041810,-629.82,9.997e-05,2]
[348384573,1736493041820,-500.0,9.997e-05,2]
[348384574,1736493041830,-537.1,9.997e-05,2]
[348384575,1736493041840,-500.0,9.997e-05,2]
[348384576,1736493041850,-503.3677463,9.997e-05,2]
[348384577,1736493041859,-500.0,9.997e-05,2]
[348384578,1736493041869,-1342.73,9.998e-05,2]
[348384579,1736493041878,-1272.58,9.998e-05,2]
[348384580,1736493041887,-2128.12,9.998e-05,2]
[348384581,1736493041897,-500.0,9.998e-05,2]
[348384582,1736493041907,-500.0,9.998e-05,2]
[348384583,1736493041916,-235.40787081,9.998e-05,2]
[348384584,1736493041925,-603.58,9.998e-05,2]
[348384585,1736493041935,-500.0,9.998e-05,2]
[348384586,1736493041944,-5456.34,9.998e-05,2]
[348384587,1736493041954,-500.0,9.998e-05,2]
[348384588,1736493041963,-500.0,9.998e-05,2]
[348384589,1736493041972,-500.0,9.998e-05,2]
[348384590,1736493041982,-500.0,9.998e-05,2]
[348384591,1736493041991,-500.0,9.998e-05,2]
[348384592,1736493042001,-500.0,9.998e-05,2]
[348384593,1736493042010,-592.94660106,9.998e-05,2]
[348384594,1736493042019,-908.96,9.998e-05,2]
[348384595,1736493042028,-500.0,9.998e-05,2]
[348384596,1736493042037,-588.39,9.998e-05,2]
[348384597,1736493042050,-500.0,9.998e-05,2]
[348384598,1736493042060,-651.33,9.998e-05,2]
[348384599,1736493042069,-500.0,9.998e-05,2]
[348384600,1736493042079,-500.0,9.998e-05,2]
[348384601,1736493042088,-516.89,9.998e-05,2]
[348384602,1736493042098,-500.0,9.998e-05,2]
[348384603,1736493042108,-500.0,9.998e-05,2]
[348384604,1736493042117,-513.7181214,9.998e-05,2]
[348384605,1736493042126,-500.0,9.998e-05,2]
[348384606,1736493042135,-500.0,9.998e-05,2]
[348384607,1736493042145,-758.18,9.998e-05,2]
[348384608,1736493042154,-500.0,9.998e-05,2]
[348384609,1736493042164,-2327.34,9.998e-05,2]
[348384610,1736493042174,-482.62071834,9.998e-05,2]
[348384611,1736493042184,-500.0,9.998e-05,2]
[348384612,1736493042193,-500.0,9.998e-05,2]
[348384613,1736493042203,-500.0,9.998e-05,2]
[348384614,1736493042213,-801.33,9.998e-05,2]
[348384615,1736493042222,-887.45,9.998e-05,2]
[348384616,1736493042232,-500.0,9.998e-05,2]
[348384617,1736493042242,-500.0,9.998e-05,2]
[348384618,1736493042252,-500.0,9.998e-05,2]
[348384619,1736493042262,-500.0,9.998e-05,2]
[348384620,1736493042271,-1168.06,9.998e-05,2]
[348384621,1736493042280,-500.0,9.998e-05,2]
[348384622,1736493042290,-500.0,9.998e-05,2]
[348384623,1736493042302,-500.0,9.998e-05,2]
[348384624,1736493042312,-971.61,9.998e-05,2]
[348384625,1736493042321,-500.0,9.998e-05,2]
[348384626,1736493042330,-492.5478254,9.998e-05,2]
[348384627,1736493042339,-1229.55,9.998e-05,2]
[348384628,1736493042349,-500.0,9.998e-05,2]
[348384629,1736493042358,-500.0,9.998e-05,2]
[348384630,1736493042368,-1271.26,9.998e-05,2]
[348384631,1736493042377,-500.0,9.998e-05,2]
[348384632,1736493042386,-540.9,9.998e-05,2]
[348384633,1736493042395,-907.17,9.998e-05,2]
[348384634,1736493042405,-1000.0,9.998e-05,2]
[348384635,1736493042414,-817.77,9.998e-05,2]
[348384636,1736493042423,-1013.79,9.998e-05,2]
[348384637,1736493042433,-500.0,9.998e-05,2]
[348384638,1736493042443,-1209.54,9.998e-05,2]
[348384639,1736493042453,-2219.31,9.998e-05,2]
[348384640,1736493042462,-1234.0,9.998e-05,2]
[348384641,1736493042472,-1623.87,9.998e-05,2]
[348384642,1736493042482,-1750.63,9.998e-05,2]
[348384643,1736493042491,-1584.63,9.998e-05,2]
[348384644,1736493042501,-2262.14,9.998e-05,2]
[348384645,1736493042511,-1075.48,9.998e-05,2]
[348384647,1736493042520,-1227.3,9.998e-05,2]
[348384648,1736493042530,-1533.0,9.998e-05,2]
[348384649,1736493042539,-3536.72,9.998e-05,2]
[348384650,1736493042550,-3793.0,9.999e-05,2]
[348384651,1736493042560,-500.0,9.999e-05,2]
[348384653,1736493042570,-2461.46,9.999e-05,2]
[348384654,1736493042579,-853.84,9.999e-05,2]
[348384656,1736493042589,-940.55,9.999e-05,2]
[348384658,1736493042599,-500.0,9.999e-05,2]
[348384660,1736493042609,-615.3,9.999e-05,2]
[348384662,1736493042618,-1138.63,9.999e-05,2]
[348384664,1736493042629,-1096.81,9.999e-05,2]
[348384668,1736493042638,-1164.11,9.999e-05,2]
[348384670,1736493042648,-557.57,9.999e-05,2]
[348384673,1736493042657,-1286.05,9.999e-05,2]
[348384676,1736493042667,-756.04,9.999e-05,2]
[348384680,1736493042678,-205.59955707,9.999e-05,2]
[348384683,1736493042687,-500.0,9.999e-05,2]
[348384687,1736493042696,-1000.0,0.0001,2]
[348384689,1736493042705,-3063332.9446695,0.0001,5]
[348384700,1736493042738,-1369.19596328,0.0001,5]
[348384704,1736493042750,-1730.02566665,0.0001,5]
[348384713,1736493042779,-15838.17875957,0.0001,5]
[348384715,1736493042789,-479.72,0.0001,5]
[348384718,1736493042802,-26633.72112619,0.0001,5]
[348384720,1736493042813,-1123.58083236,0.0001,5]
[348384722,1736493043695,-500.0,9.997e-05,2]
[348384723,1736493043705,-500.0,9.997e-05,2]
[348384724,1736493043714,-500.0,9.997e-05,2]
[348384725,1736493043723,-245.2,0.0001,5]
[348384726,1736493043734,-488.17277904,0.0001,5]
[348384727,1736493043746,-1181.43300001,0.0001,5]
[348384728,1736493043757,-17702.69882965,0.0001,5]
[348384729,1736493043788,-569.4678486,0.0001,5]
[348384730,1736493043801,-2631.01595791,0.0001,5]
[348384731,1736493044188,-64589.07739292,0.0001,5]
[348384732,1736493044201,-327.1431013,0.0001,5]
[348384733,1736493044212,-944.68873574,0.0001,5]
[348384734,1736493044260,-313.94567625,0.0001,5]
[348384735,1736493044272,-268.13583273,0.0001,5]
[348384736,1736493044283,-4975.56108033,0.0001,5]
[348384737,1736493044814,-500.0,9.997e-05,2]
[348384738,1736493044824,-6315.47,0.0001,5]
[348384739,1736493044835,-963.29598009,0.0001,5]
[348384740,1736493044846,-602.26293566,0.0001,5]
[348384741,1736493044875,-9200.0,0.0001,5]
[348384742,1736493044886,-459.54769077,0.0001,5]
[348384743,1736493044902,-386.5,0.0001,5]
[348384744,1736493044913,-500.0,0.0001,5]
[348384753,1736493045751,-405.155,0.0001,5]
[348384754,1736493045763,-2351.63147196,0.0001,5]
[348384755,1736493045778,-19211.99999998,0.0001,5]
[348384756,1736493045814,-8656.18719702,0.0001,5]
[348384757,1736493045840,-1928.721488,0.0001,5]
[348384758,1736493045852,-1457.39863166,0.0001,5]
[348384759,1736493045863,-1904.87992503,0.0001,5]
[348384760,1736493045874,-288.40686942,0.0001,5]
[348384761,1736493045984,-1397.97188857,0.0001,5]
[348384762,1736493046026,-339637.6408077,0.0001,5]
[348384763,1736493046039,-1891.19848976,0.0001,5]
[348384764,1736493046143,-21080.23870303,0.0001,5]
[348384765,1736493046156,-22431.8696,0.0001,5]
[348384766,1736493046168,-14896.168012,0.0001,5]
[348384767,1736493047279,1214.42,8.219e-05,2]
[348384770,1736493903130,500.0,8.2e-05,3]
[348384771,1736493917520,500.0,8.8e-05,3]
[348384775,1736493936621,500.0,8.8e-05,3]